[Event "*** SCC Grand Prix: Titled Tuesday Blitz"]
[Site "Chess.com"]
[Date "2020.07.14"]
[Round "7"]
[White "Gerodot71"]
[Black "marabu44"]
[Result "1-0"]
[WhiteElo "2426"]
[BlackElo "2241"]
[TimeControl "180+1"]
[EndTime "11:19:39 PDT"]
[Termination "Gerodot71 won on time"]

1. d4 {[%clk 0:03:00.9]} 1... d5 {[%clk 0:02:59.3]} 2. c4 {[%clk 0:03:00.9]}
2... e6 {[%clk 0:02:58.5]} 3. Nf3 {[%clk 0:02:59.8]} 3... c6 {[%clk 0:02:58.2]}
4. Qc2 {[%clk 0:02:58.4]} 4... Nf6 {[%clk 0:02:52.5]} 5. g3 {[%clk 0:02:57.5]}
5... Bb4+ {[%clk 0:02:50.8]} 6. Bd2 {[%clk 0:02:55.8]} 6... Be7 {[%clk 0:02:37]}
7. Bg2 {[%clk 0:02:54.2]} 7... Ne4 {[%clk 0:02:36.7]} 8. O-O {[%clk 0:02:52.4]}
8... O-O {[%clk 0:02:35.8]} 9. Nc3 {[%clk 0:02:50.2]} 9... Nxd2 {[%clk
0:02:35.2]} 10. Nxd2 {[%clk 0:02:51.1]} 10... f5 {[%clk 0:02:33.7]} 11. e3
{[%clk 0:02:46]} 11... Nd7 {[%clk 0:02:32]} 12. Rab1 {[%clk 0:02:39.8]} 12...
Nf6 {[%clk 0:02:31.4]} 13. b4 {[%clk 0:02:37.2]} 13... Ne4 {[%clk 0:02:30.5]}
14. b5 {[%clk 0:02:33.5]} 14... Nxd2 {[%clk 0:02:26.3]} 15. Qxd2 {[%clk
0:02:31.6]} 15... Bd7 {[%clk 0:02:07.7]} 16. Rfc1 {[%clk 0:02:26.4]} 16... Rc8
{[%clk 0:02:04.4]} 17. bxc6 {[%clk 0:02:16.3]} 17... bxc6 {[%clk 0:02:04.1]} 18.
Rb7 {[%clk 0:02:16.1]} 18... Rc7 {[%clk 0:02:03.8]} 19. Rxc7 {[%clk 0:02:15.2]}
19... Qxc7 {[%clk 0:02:03.5]} 20. cxd5 {[%clk 0:02:15.5]} 20... Bb4 {[%clk
0:01:41.9]} 21. dxc6 {[%clk 0:01:52.6]} 21... Bc8 {[%clk 0:01:27.6]} 22. Qd3
{[%clk 0:01:50]} 22... Qa5 {[%clk 0:01:20.3]} 23. Rc2 {[%clk 0:01:47.1]} 23...
Ba6 {[%clk 0:01:18.5]} 24. Qd2 {[%clk 0:01:45.7]} 24... Rc8 {[%clk 0:01:17.5]}
25. h4 {[%clk 0:01:41]} 25... Bb5 {[%clk 0:01:12.6]} 26. d5 {[%clk 0:01:36.1]}
26... e5 {[%clk 0:01:05]} 27. a3 {[%clk 0:01:21]} 27... Bd6 {[%clk 0:00:58.8]}
28. Nxb5 {[%clk 0:01:12.8]} 28... Qxb5 {[%clk 0:00:58.5]} 29. Rb2 {[%clk
0:01:13.4]} 29... Qc5 {[%clk 0:00:53.4]} 30. Rb7 {[%clk 0:01:12]} 30... Qxa3
{[%clk 0:00:47.9]} 31. Qe2 {[%clk 0:01:04.4]} 31... Rc7 {[%clk 0:00:35.8]} 32.
Qh5 {[%clk 0:01:02.3]} 32... g6 {[%clk 0:00:32.8]} 33. Qg5 {[%clk 0:01:02.1]}
33... Be7 {[%clk 0:00:22.7]} 34. Qh6 {[%clk 0:00:43.6]} 34... Rxb7 {[%clk
0:00:16.8]} 35. cxb7 {[%clk 0:00:44.5]} 35... Qd6 {[%clk 0:00:16.5]} 36. h5
{[%clk 0:00:43.2]} 36... e4 {[%clk 0:00:08.7]} 37. hxg6 {[%clk 0:00:41.2]} 37...
hxg6 {[%clk 0:00:08.7]} 38. Bh3 {[%clk 0:00:37.5]} 38... Kf7 {[%clk 0:00:05.7]}
39. Qh7+ {[%clk 0:00:34.9]} 1-0

[Event "*** SCC Grand Prix: Titled Tuesday Blitz"]
[Site "Chess.com"]
[Date "2020.07.14"]
[Round "7"]
[White "FMJoseHerrera"]
[Black "Paladin61"]
[Result "0-1"]
[WhiteElo "2486"]
[BlackElo "2660"]
[TimeControl "180+1"]
[EndTime "11:19:41 PDT"]
[Termination "Paladin61 won by resignation"]

1. Nf3 {[%clk 0:03:00.9]} 1... Nf6 {[%clk 0:02:59.1]} 2. g3 {[%clk 0:03:01.2]}
2... g6 {[%clk 0:02:59]} 3. Bg2 {[%clk 0:03:01.7]} 3... Bg7 {[%clk 0:02:59.3]}
4. d3 {[%clk 0:03:02.6]} 4... O-O {[%clk 0:02:59.4]} 5. Nc3 {[%clk 0:03:03.5]}
5... c5 {[%clk 0:02:57.2]} 6. h4 {[%clk 0:03:03.3]} 6... d5 {[%clk 0:02:43.8]}
7. h5 {[%clk 0:03:01.8]} 7... d4 {[%clk 0:02:30]} 8. Nb1 {[%clk 0:02:58.3]} 8...
Nxh5 {[%clk 0:02:28.5]} 9. Bg5 {[%clk 0:02:57.1]} 9... Nc6 {[%clk 0:02:23.1]}
10. Qd2 {[%clk 0:02:56.3]} 10... f6 {[%clk 0:02:04.6]} 11. Bh6 {[%clk 0:02:54]}
11... Rf7 {[%clk 0:02:04.5]} 12. Bxg7 {[%clk 0:02:46.6]} 12... Nxg7 {[%clk
0:02:03.8]} 13. Na3 {[%clk 0:02:40.9]} 13... e5 {[%clk 0:02:01.8]} 14. Nh4
{[%clk 0:02:07.3]} 14... Be6 {[%clk 0:01:40.2]} 15. Nxg6 {[%clk 0:01:49]} 15...
hxg6 {[%clk 0:01:32.5]} 16. Qh6 {[%clk 0:01:36.6]} 16... Kf8 {[%clk 0:01:25]}
17. Qxg6 {[%clk 0:01:32.6]} 17... Ke7 {[%clk 0:01:24.5]} 18. Rh7 {[%clk
0:01:04.4]} 18... Bf5 {[%clk 0:01:18.3]} 19. Qxg7 {[%clk 0:00:57.6]} 19... Bxh7
{[%clk 0:01:07.8]} 20. Qh6 {[%clk 0:00:56.4]} 20... Qa5+ {[%clk 0:01:03.6]} 21.
Kf1 {[%clk 0:00:51]} 21... Rd8 {[%clk 0:00:57.6]} 22. Nc4 {[%clk 0:00:49.7]}
22... Qc7 {[%clk 0:00:57.5]} 23. a4 {[%clk 0:00:46.7]} 23... Bf5 {[%clk
0:00:55.2]} 24. Qh5 {[%clk 0:00:27.5]} 24... Qd7 {[%clk 0:00:52.6]} 25. a5
{[%clk 0:00:24.3]} 25... Rh7 {[%clk 0:00:44.3]} 26. Qf3 {[%clk 0:00:22.4]} 26...
Bg4 {[%clk 0:00:43.9]} 27. Qe4 {[%clk 0:00:20.9]} 27... f5 {[%clk 0:00:39.7]}
28. Nxe5 {[%clk 0:00:20.2]} 28... fxe4 {[%clk 0:00:39.4]} 29. Nxd7 {[%clk
0:00:19.4]} 29... Bxd7 {[%clk 0:00:36]} 30. Bxe4 {[%clk 0:00:20.3]} 30... Rh6
{[%clk 0:00:31.4]} 31. a6 {[%clk 0:00:20.6]} 31... b6 {[%clk 0:00:30.8]} 32. Kg2
{[%clk 0:00:20.1]} 32... Ne5 {[%clk 0:00:28]} 0-1

[Event "*** SCC Grand Prix: Titled Tuesday Blitz"]
[Site "Chess.com"]
[Date "2020.07.14"]
[Round "7"]
[White "GelmanAlexander"]
[Black "crescentmoon2411"]
[Result "1-0"]
[WhiteElo "2616"]
[BlackElo "2844"]
[TimeControl "180+1"]
[EndTime "11:19:42 PDT"]
[Termination "GelmanAlexander won on time"]

1. c4 {[%clk 0:03:00.9]} 1... c5 {[%clk 0:02:58]} 2. Nf3 {[%clk 0:03:00.8]} 2...
Nf6 {[%clk 0:02:58]} 3. e3 {[%clk 0:03:01.3]} 3... g6 {[%clk 0:02:57.5]} 4. Be2
{[%clk 0:03:01.8]} 4... Bg7 {[%clk 0:02:57.8]} 5. O-O {[%clk 0:03:02.5]} 5...
O-O {[%clk 0:02:58.2]} 6. a3 {[%clk 0:03:03.1]} 6... d5 {[%clk 0:02:55.5]} 7.
cxd5 {[%clk 0:03:03.2]} 7... Nxd5 {[%clk 0:02:55.5]} 8. d3 {[%clk 0:03:04.1]}
8... Nc6 {[%clk 0:02:52.4]} 9. Nbd2 {[%clk 0:03:04.5]} 9... b6 {[%clk
0:02:51.8]} 10. Qc2 {[%clk 0:02:59.2]} 10... Bb7 {[%clk 0:02:51.4]} 11. Ne4
{[%clk 0:02:58.7]} 11... Rc8 {[%clk 0:02:49.2]} 12. Bd2 {[%clk 0:02:58.9]} 12...
h6 {[%clk 0:02:46.3]} 13. Rac1 {[%clk 0:02:58.9]} 13... Qd7 {[%clk 0:02:43.9]}
14. Qb1 {[%clk 0:02:58.2]} 14... Ne5 {[%clk 0:02:36.2]} 15. Rfd1 {[%clk
0:02:51.8]} 15... Rc7 {[%clk 0:02:22.2]} 16. b4 {[%clk 0:02:36]} 16... Nxf3+
{[%clk 0:02:07]} 17. Bxf3 {[%clk 0:02:35.7]} 17... cxb4 {[%clk 0:02:07.1]} 18.
Rxc7 {[%clk 0:02:34.9]} 18... Qxc7 {[%clk 0:02:04]} 19. axb4 {[%clk 0:02:35.3]}
19... Rc8 {[%clk 0:02:03.6]} 20. Rc1 {[%clk 0:02:28.8]} 20... Qd7 {[%clk
0:02:03]} 21. h3 {[%clk 0:02:13.9]} 21... Kh7 {[%clk 0:01:54.2]} 22. Rxc8 {[%clk
0:01:54.8]} 22... Qxc8 {[%clk 0:01:53.6]} 23. Qa2 {[%clk 0:01:52.7]} 23... a6
{[%clk 0:01:21.3]} 24. d4 {[%clk 0:01:51.6]} 24... Qd7 {[%clk 0:01:14.9]} 25.
Qc4 {[%clk 0:01:46.6]} 25... Qc6 {[%clk 0:00:57.6]} 26. Qb3 {[%clk 0:01:36.5]}
26... Qd7 {[%clk 0:00:45.3]} 27. Qc4 {[%clk 0:01:35.4]} 27... e6 {[%clk
0:00:35.5]} 28. Qc2 {[%clk 0:01:24.6]} 28... f5 {[%clk 0:00:30.4]} 29. Ng3
{[%clk 0:01:19.9]} 29... Bf8 {[%clk 0:00:26.5]} 30. Qb3 {[%clk 0:01:03.9]} 30...
Bc6 {[%clk 0:00:18.8]} 31. h4 {[%clk 0:01:03.1]} 31... Bg7 {[%clk 0:00:13.2]}
32. h5 {[%clk 0:01:02.4]} 32... g5 {[%clk 0:00:13.3]} 33. Qc2 {[%clk 0:00:55.1]}
33... Kh8 {[%clk 0:00:12.3]} 34. e4 {[%clk 0:00:52.3]} 34... Ne7 {[%clk
0:00:11.7]} 35. d5 {[%clk 0:00:46.4]} 35... exd5 {[%clk 0:00:09.4]} 36. exf5
{[%clk 0:00:46.8]} 36... Bf6 {[%clk 0:00:08.9]} 37. Qd3 {[%clk 0:00:36.7]} 37...
Kg7 {[%clk 0:00:08.4]} 38. Qxa6 {[%clk 0:00:36.6]} 38... Nxf5 {[%clk 0:00:06.3]}
39. Bg4 {[%clk 0:00:32.9]} 1-0

[Event "*** SCC Grand Prix: Titled Tuesday Blitz"]
[Site "Chess.com"]
[Date "2020.07.14"]
[Round "7"]
[White "djano"]
[Black "theblitzchamp"]
[Result "0-1"]
[WhiteElo "2469"]
[BlackElo "2652"]
[TimeControl "180+1"]
[EndTime "11:19:42 PDT"]
[Termination "theblitzchamp won on time"]

1. d4 {[%clk 0:03:00.9]} 1... d5 {[%clk 0:02:59]} 2. Bf4 {[%clk 0:02:53.6]} 2...
c5 {[%clk 0:02:58]} 3. e3 {[%clk 0:02:49.7]} 3... Nc6 {[%clk 0:02:58.3]} 4. Nf3
{[%clk 0:02:49.1]} 4... Qb6 {[%clk 0:02:57.8]} 5. Nbd2 {[%clk 0:02:42.8]} 5...
Nf6 {[%clk 0:02:50.3]} 6. dxc5 {[%clk 0:02:40.1]} 6... Qxc5 {[%clk 0:02:43.3]}
7. a3 {[%clk 0:02:36.6]} 7... Bg4 {[%clk 0:02:42.5]} 8. Be2 {[%clk 0:02:19.3]}
8... Nh5 {[%clk 0:02:26.2]} 9. O-O {[%clk 0:02:05.3]} 9... Nxf4 {[%clk
0:02:24.9]} 10. exf4 {[%clk 0:02:06.2]} 10... e6 {[%clk 0:02:20.2]} 11. c4
{[%clk 0:01:56.9]} 11... Rd8 {[%clk 0:02:03.4]} 12. cxd5 {[%clk 0:01:50.7]}
12... Qxd5 {[%clk 0:02:01.2]} 13. Qa4 {[%clk 0:01:42.9]} 13... Bc5 {[%clk
0:01:51.3]} 14. Rad1 {[%clk 0:01:34.1]} 14... Qf5 {[%clk 0:01:24.2]} 15. h3
{[%clk 0:01:07.4]} 15... Bxf3 {[%clk 0:01:09.8]} 16. Bxf3 {[%clk 0:01:04.5]}
16... O-O {[%clk 0:01:04.6]} 17. Bxc6 {[%clk 0:00:48.9]} 17... bxc6 {[%clk
0:01:05.2]} 18. Qxc6 {[%clk 0:00:46.7]} 18... Rd6 {[%clk 0:01:04.2]} 19. g4
{[%clk 0:00:20.5]} 19... Qc2 {[%clk 0:00:30.4]} 20. Qb7 {[%clk 0:00:12.3]} 20...
Rxd2 {[%clk 0:00:29.1]} 21. Rxd2 {[%clk 0:00:08.2]} 21... Qxd2 {[%clk
0:00:28.4]} 22. b4 {[%clk 0:00:08.7]} 22... Bb6 {[%clk 0:00:27.4]} 23. Qe4
{[%clk 0:00:05.7]} 23... h6 {[%clk 0:00:23.4]} 24. Kg2 {[%clk 0:00:05.8]} 24...
Rd8 {[%clk 0:00:23.3]} 25. f5 {[%clk 0:00:05.5]} 25... exf5 {[%clk 0:00:22.1]}
26. Qxf5 {[%clk 0:00:05.4]} 26... Qd5+ {[%clk 0:00:18.9]} 27. Qf3 {[%clk
0:00:04.9]} 27... Qxf3+ {[%clk 0:00:18.7]} 28. Kxf3 {[%clk 0:00:05.8]} 28...
Rd3+ {[%clk 0:00:19.4]} 29. Ke4 {[%clk 0:00:05.7]} 29... Rxa3 {[%clk 0:00:20.3]}
30. f4 {[%clk 0:00:05]} 30... Rxh3 {[%clk 0:00:20.2]} 31. Rd1 {[%clk 0:00:04.3]}
31... Re3+ {[%clk 0:00:19.9]} 32. Kf5 {[%clk 0:00:04.3]} 32... g6+ {[%clk
0:00:19.1]} 0-1

[Event "*** SCC Grand Prix: Titled Tuesday Blitz"]
[Site "Chess.com"]
[Date "2020.07.14"]
[Round "7"]
[White "JosefineHeinemann"]
[Black "FlamingPhoenix123"]
[Result "1-0"]
[WhiteElo "2648"]
[BlackElo "2441"]
[TimeControl "180+1"]
[EndTime "11:19:45 PDT"]
[Termination "JosefineHeinemann won on time"]

1. e4 {[%clk 0:03:00.9]} 1... c5 {[%clk 0:03:00.3]} 2. d4 {[%clk 0:02:59.8]}
2... cxd4 {[%clk 0:03:00.1]} 3. c3 {[%clk 0:02:58.3]} 3... dxc3 {[%clk
0:02:59.8]} 4. Nxc3 {[%clk 0:02:58.9]} 4... Nc6 {[%clk 0:03:00.5]} 5. Nf3 {[%clk
0:02:53]} 5... e6 {[%clk 0:02:56.6]} 6. Bc4 {[%clk 0:02:53]} 6... a6 {[%clk
0:02:52.7]} 7. O-O {[%clk 0:02:48.4]} 7... b5 {[%clk 0:02:49.8]} 8. Bb3 {[%clk
0:02:44.1]} 8... Bb7 {[%clk 0:02:50]} 9. e5 {[%clk 0:02:43.8]} 9... d5 {[%clk
0:02:45.5]} 10. exd6 {[%clk 0:02:43.9]} 10... Qxd6 {[%clk 0:02:45]} 11. Qe2
{[%clk 0:02:41.4]} 11... Nf6 {[%clk 0:02:44.9]} 12. Rd1 {[%clk 0:02:39.8]} 12...
Qc7 {[%clk 0:02:42.5]} 13. a4 {[%clk 0:02:39.1]} 13... b4 {[%clk 0:02:38.7]} 14.
Nd5 {[%clk 0:02:39.6]} 14... Nxd5 {[%clk 0:01:59.2]} 15. Bxd5 {[%clk 0:02:40.5]}
15... O-O-O {[%clk 0:01:59.2]} 16. Bxc6 {[%clk 0:02:30.2]} 16... Rxd1+ {[%clk
0:01:58.5]} 17. Qxd1 {[%clk 0:02:30]} 17... Bxc6 {[%clk 0:01:59.4]} 18. Be3
{[%clk 0:02:25.7]} 18... Bd6 {[%clk 0:01:58.9]} 19. Rc1 {[%clk 0:02:22.4]} 19...
Rd8 {[%clk 0:01:57.9]} 20. Qe2 {[%clk 0:02:18.7]} 20... Kb7 {[%clk 0:01:21.8]}
21. Nd4 {[%clk 0:02:09.7]} 21... Bxh2+ {[%clk 0:01:20.4]} 22. Kh1 {[%clk
0:02:06]} 22... Rxd4 {[%clk 0:00:58.2]} 23. Bxd4 {[%clk 0:02:06.9]} 23... Bxg2+
{[%clk 0:00:58.1]} 24. Kxg2 {[%clk 0:02:02.4]} 24... Qxc1 {[%clk 0:00:58.8]} 25.
Qf3+ {[%clk 0:01:59.9]} 25... Qc6 {[%clk 0:00:54]} 26. Qxc6+ {[%clk 0:01:59.5]}
26... Kxc6 {[%clk 0:00:54.9]} 27. Kxh2 {[%clk 0:02:00.1]} 27... f6 {[%clk
0:00:55.3]} 28. b3 {[%clk 0:01:52.6]} 28... Kd5 {[%clk 0:00:54.8]} 29. Be3
{[%clk 0:01:49.8]} 29... h5 {[%clk 0:00:18.3]} 30. Kg3 {[%clk 0:01:43]} 30... g5
{[%clk 0:00:18.4]} 31. f3 {[%clk 0:01:36]} 31... e5 {[%clk 0:00:17.4]} 32. Kf2
{[%clk 0:01:31.2]} 32... g4 {[%clk 0:00:15.5]} 33. Bd2 {[%clk 0:01:28]} 33...
Kc5 {[%clk 0:00:13.2]} 34. fxg4 {[%clk 0:01:23.5]} 34... hxg4 {[%clk 0:00:13.1]}
35. Kg3 {[%clk 0:01:24.4]} 35... f5 {[%clk 0:00:13.4]} 36. Be1 {[%clk
0:01:19.4]} 36... a5 {[%clk 0:00:05.1]} 37. Bf2+ {[%clk 0:01:17.8]} 37... Kc6
{[%clk 0:00:05.5]} 38. Bg1 {[%clk 0:01:16.3]} 38... Kb7 {[%clk 0:00:05.6]} 39.
Kh4 {[%clk 0:01:13.6]} 39... Kc6 {[%clk 0:00:05.5]} 40. Kg5 {[%clk 0:01:11]}
40... f4 {[%clk 0:00:05.8]} 41. Kxg4 {[%clk 0:01:08.7]} 41... Kd5 {[%clk
0:00:06.7]} 42. Bb6 {[%clk 0:01:05.4]} 42... Ke4 {[%clk 0:00:07.2]} 43. Bxa5
{[%clk 0:00:58]} 43... f3 {[%clk 0:00:07.3]} 44. Kg3 {[%clk 0:00:54.3]} 44...
Ke3 {[%clk 0:00:07.4]} 45. Bxb4 {[%clk 0:00:50.7]} 1-0

[Event "*** SCC Grand Prix: Titled Tuesday Blitz"]
[Site "Chess.com"]
[Date "2020.07.14"]
[Round "7"]
[White "GjakanTati"]
[Black "doctorcristian"]
[Result "1-0"]
[WhiteElo "2577"]
[BlackElo "2408"]
[TimeControl "180+1"]
[EndTime "11:19:45 PDT"]
[Termination "GjakanTati won by checkmate"]

1. d4 {[%clk 0:03:00.9]} 1... Nf6 {[%clk 0:02:59.3]} 2. c4 {[%clk 0:03:01]} 2...
e6 {[%clk 0:02:57.9]} 3. Nf3 {[%clk 0:03:00.7]} 3... d5 {[%clk 0:02:57.9]} 4.
Nc3 {[%clk 0:02:57.7]} 4... Nbd7 {[%clk 0:02:53.5]} 5. Bg5 {[%clk 0:02:57.1]}
5... c6 {[%clk 0:02:52.1]} 6. e3 {[%clk 0:02:56.6]} 6... Bb4 {[%clk 0:02:51.6]}
7. Bd3 {[%clk 0:02:43.3]} 7... Qa5 {[%clk 0:02:50.3]} 8. Qc2 {[%clk 0:02:35.2]}
8... Ne4 {[%clk 0:02:43.3]} 9. cxd5 {[%clk 0:01:48]} 9... Nxc3 {[%clk
0:01:53.6]} 10. bxc3 {[%clk 0:01:47]} 10... Bxc3+ {[%clk 0:01:50]} 11. Ke2
{[%clk 0:01:47]} 11... Bxa1 {[%clk 0:01:48.5]} 12. dxe6 {[%clk 0:01:40.6]} 12...
Qc3 {[%clk 0:00:58.3]} 13. exd7+ {[%clk 0:01:19.1]} 13... Bxd7 {[%clk
0:00:56.8]} 14. Rb1 {[%clk 0:01:02.9]} 14... Qxc2+ {[%clk 0:00:49.3]} 15. Bxc2
{[%clk 0:01:03.8]} 15... Bc3 {[%clk 0:00:49.4]} 16. Rxb7 {[%clk 0:01:04]} 16...
Be6 {[%clk 0:00:45.4]} 17. Re7+ {[%clk 0:00:54.3]} 17... Kf8 {[%clk 0:00:45.6]}
18. Rc7 {[%clk 0:00:53.7]} 18... Bb4 {[%clk 0:00:42.6]} 19. Rxc6 {[%clk
0:00:49.3]} 19... Bxa2 {[%clk 0:00:39.3]} 20. Be4 {[%clk 0:00:41.2]} 20... Re8
{[%clk 0:00:37.1]} 21. Bd3 {[%clk 0:00:37.5]} 21... a5 {[%clk 0:00:33.9]} 22.
Rc7 {[%clk 0:00:34.2]} 22... h6 {[%clk 0:00:20.7]} 23. Bf4 {[%clk 0:00:32.6]}
23... Be6 {[%clk 0:00:19.2]} 24. Bb5 {[%clk 0:00:31.9]} 24... Rd8 {[%clk
0:00:17.8]} 25. e4 {[%clk 0:00:31]} 25... Bb3 {[%clk 0:00:12.8]} 26. d5 {[%clk
0:00:29.8]} 26... a4 {[%clk 0:00:10.4]} 27. Ne5 {[%clk 0:00:20.6]} 27... Bd6
{[%clk 0:00:08.3]} 28. Rxf7+ {[%clk 0:00:19.3]} 28... Kg8 {[%clk 0:00:08.8]} 29.
Ra7 {[%clk 0:00:19.2]} 29... Rb8 {[%clk 0:00:06.3]} 30. Bd3 {[%clk 0:00:17.3]}
30... a3 {[%clk 0:00:05]} 31. Ng6 {[%clk 0:00:14.3]} 31... Bxf4 {[%clk
0:00:04.9]} 32. Nxf4 {[%clk 0:00:14.4]} 32... a2 {[%clk 0:00:05.4]} 33. Ne6
{[%clk 0:00:14.6]} 33... Kh7 {[%clk 0:00:05.2]} 34. Rxg7# {[%clk 0:00:13.8]} 1-0

[Event "*** SCC Grand Prix: Titled Tuesday Blitz"]
[Site "Chess.com"]
[Date "2020.07.14"]
[Round "7"]
[White "aripov96"]
[Black "mfwagnerpeixoto"]
[Result "1-0"]
[WhiteElo "2424"]
[BlackElo "2239"]
[TimeControl "180+1"]
[EndTime "11:19:45 PDT"]
[Termination "aripov96 won on time"]

1. d4 {[%clk 0:02:57.5]} 1... Nf6 {[%clk 0:02:59]} 2. c4 {[%clk 0:02:56.7]} 2...
e6 {[%clk 0:02:59.3]} 3. Nc3 {[%clk 0:02:55.6]} 3... Bb4 {[%clk 0:02:59.1]} 4.
Bd2 {[%clk 0:02:55]} 4... O-O {[%clk 0:02:58.1]} 5. Nf3 {[%clk 0:02:54.9]} 5...
b6 {[%clk 0:02:57.9]} 6. g3 {[%clk 0:02:54.3]} 6... Bb7 {[%clk 0:02:57.5]} 7.
Bg2 {[%clk 0:02:54.7]} 7... Bxc3 {[%clk 0:02:51.4]} 8. Bxc3 {[%clk 0:02:54.2]}
8... Ne4 {[%clk 0:02:51.5]} 9. Rc1 {[%clk 0:02:53.2]} 9... f5 {[%clk 0:02:50.2]}
10. O-O {[%clk 0:02:52.8]} 10... d6 {[%clk 0:02:50.5]} 11. b3 {[%clk 0:02:52.4]}
11... Nxc3 {[%clk 0:02:43.8]} 12. Rxc3 {[%clk 0:02:53.3]} 12... Be4 {[%clk
0:02:40.5]} 13. Ne1 {[%clk 0:02:43]} 13... Bxg2 {[%clk 0:02:39.4]} 14. Nxg2
{[%clk 0:02:43.9]} 14... Qf6 {[%clk 0:02:27.9]} 15. e3 {[%clk 0:02:04.4]} 15...
Nc6 {[%clk 0:02:23.5]} 16. Qd2 {[%clk 0:01:46.5]} 16... a5 {[%clk 0:02:19.6]}
17. Rcc1 {[%clk 0:01:37.9]} 17... Kh8 {[%clk 0:02:17.4]} 18. Rfd1 {[%clk
0:01:29.5]} 18... Rad8 {[%clk 0:02:08.8]} 19. Qe2 {[%clk 0:01:28.1]} 19... e5
{[%clk 0:01:56.3]} 20. dxe5 {[%clk 0:01:19.8]} 20... dxe5 {[%clk 0:01:49.5]} 21.
c5 {[%clk 0:01:14.9]} 21... e4 {[%clk 0:01:33.9]} 22. cxb6 {[%clk 0:01:09.1]}
22... cxb6 {[%clk 0:01:34.8]} 23. Rxd8 {[%clk 0:00:41.1]} 23... Rxd8 {[%clk
0:01:29.4]} 24. Qb5 {[%clk 0:00:40.8]} 24... Ne5 {[%clk 0:01:23]} 25. Nf4 {[%clk
0:00:40.4]} 25... Nf3+ {[%clk 0:01:22]} 26. Kg2 {[%clk 0:00:40.1]} 26... g5
{[%clk 0:00:44.3]} 27. Rc6 {[%clk 0:00:14.4]} 27... Qa1 {[%clk 0:00:42.1]} 28.
Qxf5 {[%clk 0:00:12.7]} 28... Qg1+ {[%clk 0:00:37.7]} 29. Kh3 {[%clk 0:00:12.9]}
29... Qxh2+ {[%clk 0:00:35.6]} 30. Kg4 {[%clk 0:00:12.1]} 30... h5+ {[%clk
0:00:03.3]} 31. Nxh5 {[%clk 0:00:11.7]} 1-0

[Event "*** SCC Grand Prix: Titled Tuesday Blitz"]
[Site "Chess.com"]
[Date "2020.07.14"]
[Round "7"]
[White "denispopov"]
[Black "LubovMarkelova"]
[Result "0-1"]
[WhiteElo "1769"]
[BlackElo "2179"]
[TimeControl "180+1"]
[EndTime "11:19:46 PDT"]
[Termination "LubovMarkelova won on time"]

1. e4 {[%clk 0:03:00.9]} 1... e6 {[%clk 0:02:58.7]} 2. b3 {[%clk 0:02:59]} 2...
d5 {[%clk 0:02:59.6]} 3. Bb2 {[%clk 0:02:59.5]} 3... dxe4 {[%clk 0:02:59.6]} 4.
Nc3 {[%clk 0:03:00]} 4... Nf6 {[%clk 0:03:00]} 5. Qe2 {[%clk 0:02:58.8]} 5...
Be7 {[%clk 0:02:58.9]} 6. Nxe4 {[%clk 0:02:58.4]} 6... O-O {[%clk 0:02:56.9]} 7.
O-O-O {[%clk 0:02:58]} 7... a5 {[%clk 0:02:53.4]} 8. g4 {[%clk 0:02:55.1]} 8...
Nxe4 {[%clk 0:02:53]} 9. Qxe4 {[%clk 0:02:56]} 9... Bf6 {[%clk 0:02:53.3]} 10.
d4 {[%clk 0:02:55.8]} 10... a4 {[%clk 0:02:52.5]} 11. h4 {[%clk 0:02:45.4]}
11... axb3 {[%clk 0:02:33.5]} 12. axb3 {[%clk 0:02:43.7]} 12... Bd7 {[%clk
0:02:21.6]} 13. Bd3 {[%clk 0:02:17]} 13... g6 {[%clk 0:02:20.9]} 14. Rh2 {[%clk
0:02:13.6]} 14... Bc6 {[%clk 0:02:20.8]} 15. Qe3 {[%clk 0:02:11.5]} 15... Na6
{[%clk 0:02:08.7]} 16. Bxa6 {[%clk 0:01:47]} 16... Rxa6 {[%clk 0:02:07.3]} 17.
f4 {[%clk 0:01:47]} 17... Qd6 {[%clk 0:01:59.6]} 18. g5 {[%clk 0:01:42.4]} 18...
Bg7 {[%clk 0:01:59.3]} 19. h5 {[%clk 0:01:31.8]} 19... Rfa8 {[%clk 0:01:50]} 20.
Ne2 {[%clk 0:00:58.6]} 20... Bb5 {[%clk 0:01:20.7]} 21. Kb1 {[%clk 0:00:25.9]}
21... Bxe2 {[%clk 0:01:14.8]} 22. Qxe2 {[%clk 0:00:21.3]} 22... Qxf4 {[%clk
0:01:01.7]} 23. hxg6 {[%clk 0:00:19.6]} 23... hxg6 {[%clk 0:00:55]} 24. Rf1
{[%clk 0:00:18.5]} 24... Qxg5 {[%clk 0:00:54.3]} 25. Qf3 {[%clk 0:00:15.3]}
25... Qf5 {[%clk 0:00:32.2]} 26. Qg2 {[%clk 0:00:10.3]} 26... Qd5 {[%clk
0:00:29.2]} 27. Qh3 {[%clk 0:00:09.4]} 27... Ra1+ {[%clk 0:00:16.5]} 28. Bxa1
{[%clk 0:00:05]} 28... Rxa1+ {[%clk 0:00:15.2]} 29. Kxa1 {[%clk 0:00:05.6]}
29... Qxd4+ {[%clk 0:00:14]} 30. c3 {[%clk 0:00:05.9]} 30... Qa7+ {[%clk
0:00:13]} 31. Kb1 {[%clk 0:00:05.2]} 31... Qa3 {[%clk 0:00:11.9]} 0-1